bitfinex/quotes_BTCUSD_20220105
["timestamp","ask_amount","ask_price","bid_price","bid_amount"]
[1641409450478,0.094333,45939.0,45938.0,0.006]
[1641409450874,0.094333,45939.0,45935.0,0.00119909]
[1641409451676,1.23387438,45939.0,45935.0,0.19017174]
[1641409451875,1.23387438,45939.0,45935.0,0.05719909]
[1641409452077,0.56743116,45938.0,45935.0,0.00770995]
[1641409452277,0.779894,45936.0,45935.0,0.00770995]
[1641409452476,0.399894,45936.0,45935.0,0.00770995]
[1641409452777,0.399894,45936.0,45918.0,0.00121166]
[1641409452778,0.054457,45921.0,45918.0,0.108902]
[1641409452976,0.054457,45921.0,45920.0,0.62776959]
[1641409453178,0.054457,45921.0,45916.0,0.27773967]
[1641409453377,0.0399,45927.0,45911.0,0.00122105]
[1641409453678,0.108933,45917.0,45916.0,0.058]
[1641409453930,0.359994,45917.0,45916.0,0.058]
[1641409454124,0.459994,45917.0,45916.0,0.058]
[1641409454329,0.359994,45917.0,45916.0,0.058]
[1641409454926,0.27873283,45917.0,45915.0,0.12576838]
[1641409455129,0.279034,45916.0,45915.0,0.12576838]
[1641409455328,0.0399,45921.0,45911.0,0.14714074]
[1641409455526,0.054463,45918.0,45912.0,0.15098468]
[1641409455727,0.054463,45918.0,45915.0,0.012]
[1641409455728,0.279034,45917.0,45915.0,0.012]
[1641409455930,0.60043296,45923.0,45915.0,0.01937459]
[1641409456230,0.14119296,45923.0,45922.0,1.66067708]
[1641409456432,0.14119296,45923.0,45922.0,2.1136809]
[1641409456433,0.02119296,45923.0,45922.0,2.1136809]
[1641409456626,0.108883,45939.0,45923.0,0.00630516]
[1641409456827,0.72175102,45930.0,45924.0,2.32158732]
[1641409457030,0.72175102,45930.0,45926.0,0.054437]
[1641409457428,0.72175102,45930.0,45927.0,0.1]
[1641409457673,0.72175102,45937.0,45927.0,0.05]
[1641409457875,0.054446,45930.0,45926.0,0.009]
[1641409458072,0.049446,45930.0,45926.0,0.009]
[1641409458474,0.049446,45930.0,45929.0,0.24650005]
[1641409458673,0.72175102,45934.0,45927.0,0.00665805]
[1641409458874,0.108892,45935.0,45928.0,0.00686136]
[1641409458875,0.72051102,45935.0,45928.0,0.00686136]
[1641409459079,0.72051102,45935.0,45933.0,0.14710497]
[1641409459272,0.72051102,45935.0,45933.0,0.19710497]
[1641409459474,0.72051102,45935.0,45933.0,0.24710497]
[1641409459676,0.0399,45942.0,45933.0,0.007]
[1641409459877,0.23105617,45937.0,45933.0,0.007]
[1641409460076,1.65905646,45934.0,45933.0,0.007]
[1641409460276,1.65905646,45934.0,45926.0,0.86401568]
[1641409460277,0.54,45933.0,45926.0,0.86401568]
[1641409460477,0.45017946,45934.0,45926.0,1.568e-05]
[1641409460478,0.054466,45927.0,45926.0,1.568e-05]
[1641409460677,0.227723,45927.0,45917.0,1.568e-05]
[1641409460878,0.187823,45923.0,45917.0,1.568e-05]
[1641409461080,0.187823,45923.0,45905.0,0.06169712]
[1641409461081,0.187823,45919.0,45905.0,0.06169712]
[1641409461345,0.108961,45908.0,45905.0,0.06169712]
[1641409461536,0.0399,45907.0,45905.0,0.06169712]
[1641409461736,0.0399,45907.0,45901.0,0.12071032]
[1641409461936,0.0399,45907.0,45901.0,0.004]
[1641409462534,0.187823,45903.0,45901.0,0.004]
[1641409462733,0.0399,45902.0,45901.0,0.004]
[1641409462936,0.187823,45902.0,45901.0,0.004]
[1641409463136,0.64,45901.0,45891.0,0.004]
[1641409463336,0.1,45893.0,45884.0,0.109093]
[1641409463539,0.1,45893.0,45884.0,0.00011]
[1641409463540,0.1,45890.0,45884.0,0.00011]
[1641409463735,0.00120518,45886.0,45883.0,0.43791]
[1641409463935,0.25055892,45892.0,45883.0,0.43791]
[1641409464133,0.25055892,45892.0,45883.0,0.00011]
[1641409464337,0.17066259,45889.0,45885.0,0.11864116]
[1641409464537,0.17066259,45889.0,45884.0,0.13018911]
[1641409464538,0.109003,45887.0,45884.0,0.13018911]
[1641409464735,0.16471372,45898.0,45884.0,0.13018911]
[1641409464935,0.17186485,45898.0,45884.0,0.13018911]
[1641409465176,0.187823,45897.0,45884.0,0.18018911]
[1641409465377,0.00121372,45898.0,45890.0,0.17357355]
[1641409465578,0.054489,45895.0,45890.0,0.27357355]
[1641409465780,0.00121372,45898.0,45893.0,0.26156715]
[1641409465980,0.01218497,45900.0,45893.0,0.31156715]
[1641409466177,0.1,45903.0,45893.0,0.31156715]
[1641409466178,0.59826372,45902.0,45893.0,0.31156715]
[1641409466378,0.187823,45901.0,45893.0,0.31156715]
[1641409466585,0.187823,45901.0,45897.0,0.15618458]
[1641409466784,0.59826372,45902.0,45900.0,0.21400134]
[1641409466982,0.59826372,45905.0,45900.0,0.21400134]
[1641409467178,0.187823,45904.0,45900.0,0.31400134]
[1641409467579,0.59826372,45910.0,45900.0,0.31400134]
[1641409467782,0.054481,45902.0,45900.0,0.107]
[1641409467980,0.647823,45901.0,45900.0,0.057]
[1641409468179,0.187823,45901.0,45900.0,0.007]
[1641409468380,0.287823,45901.0,45900.0,0.007]
[1641409468583,0.287823,45901.0,45897.0,0.86399024]
[1641409468584,0.50112669,45901.0,45897.0,0.86399024]
[1641409468840,0.054501,45898.0,45897.0,0.86399024]
[1641409469430,0.054501,45898.0,45893.0,0.14306401]
[1641409469633,0.187823,45897.0,45893.0,0.19306401]
[1641409469830,0.187823,45897.0,45896.0,1.75432324]
[1641409470132,0.017,45898.0,45897.0,0.96309027]
[1641409470332,0.017,45898.0,45897.0,0.13309027]
[1641409470533,0.017,45898.0,45897.0,1.57]
[1641409470797,0.017,45898.0,45897.0,1.93653242]
[1641409470932,0.01218469,45902.0,45897.0,1.930113]
[1641409471136,1.09204574,45908.0,45900.0,1.47]
[1641409471334,1.09204574,45908.0,45907.0,0.13873]
[1641409471335,0.49331,45908.0,45907.0,0.13873]
[1641409471535,0.49331,45908.0,45906.0,0.15443916]
[1641409471730,0.49331,45908.0,45907.0,0.436]
[1641409471933,0.49331,45908.0,45907.0,0.056]
[1641409472787,0.49331,45908.0,45907.0,0.4235183]
[1641409472986,1.01873574,45916.0,45913.0,0.14775269]
[1641409473185,1.01873574,45916.0,45913.0,0.2089946]
[1641409473387,0.42,45916.0,45914.0,0.00721458]
[1641409473585,0.59873574,45917.0,45916.0,1.71485123]
[1641409473785,0.59873574,45917.0,45916.0,1.72043725]
[1641409473985,0.59873574,45917.0,45916.0,1.91485123]
[1641409474187,0.59873574,45917.0,45916.0,2.27496423]
[1641409474385,0.47746574,45917.0,45916.0,2.27496423]
[1641409474586,0.47746574,45922.0,45918.0,0.00129066]
[1641409474792,0.47746574,45922.0,45921.0,1.72978806]
[1641409474986,0.47746574,45922.0,45921.0,0.460113]
[1641409475186,0.47746574,45922.0,45921.0,0.1]
[1641409475386,2.60297,45922.0,45915.0,0.42]
[1641409475589,0.38521905,45921.0,45916.0,0.054461]
[1641409475789,0.187823,45917.0,45916.0,0.054461]
[1641409477450,0.054479,45903.0,45901.0,0.42]
[1641409477849,0.060479,45903.0,45901.0,0.538957]
[1641409478050,0.060479,45903.0,45901.0,0.43]
[1641409478251,0.060479,45903.0,45901.0,0.01]
[1641409478450,0.182816,45902.0,45901.0,0.01]
[1641409479050,0.182816,45902.0,45901.0,0.30704]
[1641409479251,0.71929007,45907.0,45901.0,0.30704]
[1641409479252,0.054476,45905.0,45901.0,0.29704]
[1641409479453,0.71929007,45906.0,45901.0,0.29704]
[1641409479851,0.023,45905.0,45901.0,0.30704]
[1641409480099,0.023,45905.0,45903.0,0.34303567]
[1641409480494,0.023,45905.0,45903.0,0.44303567]
[1641409481094,0.108932,45918.0,45903.0,0.44303567]
[1641409481497,0.71929007,45917.0,45908.0,0.27770947]
[1641409481695,0.182816,45916.0,45908.0,0.27770947]
[1641409481896,0.054466,45913.0,45908.0,0.054466]
[1641409482099,0.182816,45909.0,45903.0,0.015]
[1641409482297,0.182816,45905.0,45903.0,0.015]
[1641409482497,0.38077732,45904.0,45903.0,0.015]
[1641409482800,0.182816,45904.0,45903.0,0.015]
[1641409482996,0.337302,45904.0,45903.0,0.18287786]
[1641409483197,0.154486,45904.0,45903.0,0.18287786]
[1641409483599,0.237302,45904.0,45903.0,0.18287786]
[1641409483856,0.202816,45904.0,45903.0,0.19187786]
[1641409484050,0.202816,45904.0,45903.0,0.4244839]
[1641409484251,0.202816,45904.0,45903.0,0.4244812]
[1641409484252,0.02,45904.0,45903.0,0.4244812]
[1641409484451,0.02,45904.0,45903.0,0.41764091]
[1641409485652,0.02,45904.0,45903.0,0.64304186]
[1641409485854,0.015,45904.0,45903.0,0.29187786]
[1641409486355,0.015,45904.0,45903.0,0.009]
[1641409486556,0.12073064,45904.0,45903.0,0.009]
[1641409486758,0.34014664,45904.0,45903.0,0.009]
[1641409486954,0.96014664,45904.0,45903.0,0.009]
[1641409487156,1.3023533,45904.0,45901.0,0.00049425]
[1641409487359,0.182816,45900.0,45882.0,0.00011]
[1641409487611,0.182816,45896.0,45882.0,0.00011]
[1641409487810,0.182816,45892.0,45882.0,0.00011]
[1641409488010,0.20039404,45891.0,45882.0,0.00011]
[1641409488207,0.27018136,45887.0,45882.0,0.00011]
[1641409488509,0.054512,45885.0,45882.0,0.00011]
[1641409488911,0.1,45892.0,45884.0,0.15919527]
[1641409489109,0.182816,45891.0,45884.0,0.15919527]
[1641409489309,0.054497,45889.0,45888.0,0.16748944]
[1641409489510,0.237313,45889.0,45888.0,0.16748944]
[1641409489710,0.182816,45889.0,45888.0,0.16748944]
[1641409489911,0.191816,45889.0,45887.0,0.054496]
[1641409490211,0.191816,45889.0,45885.0,0.11172974]
[1641409490212,0.009,45889.0,45885.0,0.11172974]
[1641409490411,0.054509,45887.0,45885.0,0.05]
[1641409490614,0.054509,45887.0,45885.0,0.054508]
[1641409490812,0.054509,45887.0,45881.0,0.004]
[1641409491216,0.182816,45884.0,45881.0,0.004]
[1641409491454,0.054509,45887.0,45881.0,0.004]
[1641409491654,0.182816,45886.0,45882.0,0.054616]
[1641409491850,0.062509,45887.0,45882.0,0.109121]
[1641409492250,0.062509,45887.0,45882.0,0.10961723]
[1641409492450,0.062509,45887.0,45883.0,0.11183995]
[1641409492650,0.062509,45887.0,45884.0,0.86432515]
[1641409492853,0.062509,45887.0,45884.0,0.85232515]
[1641409493051,0.054509,45887.0,45884.0,0.95682615]
[1641409493255,0.054509,45887.0,45884.0,0.25074943]
[1641409493855,0.064509,45887.0,45884.0,0.25074943]
[1641409494253,0.064509,45887.0,45884.0,0.104501]
[1641409494455,0.064509,45887.0,45884.0,0.05]
[1641409494859,0.182816,45885.0,45883.0,0.00011]
[1641409495097,0.25609962,45887.0,45883.0,0.00011]
[1641409495098,0.234229,45887.0,45883.0,0.00011]
[1641409495299,0.182816,45884.0,45883.0,0.00011]
[1641409496002,0.192816,45884.0,45883.0,0.00011]
[1641409496202,0.01,45884.0,45883.0,0.00011]
[1641409496400,0.01,45884.0,45883.0,0.17931032]
[1641409496605,0.01,45884.0,45883.0,2.01076432]
[1641409496800,0.01,45884.0,45883.0,1.831564]
[1641409496999,0.01,45884.0,45883.0,0.50580349]
[1641409497200,0.37931816,45900.0,45883.0,0.14063949]
[1641409497399,0.10899,45893.0,45885.0,0.054495]
[1641409497601,0.00123325,45887.0,45885.0,0.054495]
[1641409497800,0.00123325,45887.0,45885.0,0.05]
[1641409498602,0.05574425,45887.0,45885.0,0.05]
[1641409499043,0.182816,45886.0,45885.0,0.05]
[1641409499842,0.054511,45887.0,45885.0,0.05]
[1641409500043,0.01,45886.0,45885.0,0.05]
[1641409500248,0.01,45886.0,45882.0,0.02312447]
[1641409500446,0.054504,45885.0,45882.0,0.02312447]
[1641409500844,0.054504,45885.0,45883.0,0.109016]
[1641409501048,0.054504,45885.0,45884.0,0.16128236]
[1641409501252,0.00127142,45892.0,45884.0,0.34048268]
[1641409501449,0.108984,45896.0,45892.0,0.13940108]
[1641409501649,0.836376,45895.0,45884.0,0.17920032]
[1641409501848,0.836376,45895.0,45888.0,0.108983]
[1641409502048,0.836376,45895.0,45888.0,0.26170266]
[1641409502248,0.836376,45895.0,45889.0,0.05]
[1641409502693,0.054494,45890.0,45889.0,0.05]
[1641409503292,0.054494,45890.0,45888.0,0.054494]
[1641409503691,0.054494,45890.0,45887.0,0.13737889]
[1641409504091,0.058494,45890.0,45887.0,0.054497]
[1641409504295,0.182816,45888.0,45882.0,0.00011]
[1641409504492,0.054507,45885.0,45882.0,0.00011]
[1641409505195,0.02707881,45881.0,45879.0,0.109111]
[1641409505398,0.02707881,45881.0,45871.0,0.00033654]
[1641409505399,0.31395282,45880.0,45871.0,0.00033654]
[1641409505603,0.31395282,45880.0,45866.0,0.00033]
[1641409505604,0.05582665,45872.0,45868.0,0.00022]
[1641409505797,1.652816,45869.0,45868.0,0.00011]
[1641409505994,2.092976,45869.0,45868.0,0.00011]
[1641409506192,2.092976,45869.0,45866.0,0.00033]
[1641409506193,2.53463294,45869.0,45866.0,0.00033]
[1641409506462,2.53463294,45869.0,45860.0,0.00033]
[1641409506463,0.01059917,45865.0,45860.0,0.00033]
[1641409506657,0.01059917,45865.0,45855.0,0.01251515]
[1641409506658,1.47,45864.0,45855.0,0.01229515]
[1641409506856,1.47,45864.0,45836.0,0.00033]
[1641409506857,1.36,45854.0,45836.0,0.00033]
[1641409507057,0.1,45851.0,45844.0,0.00033]
[1641409507256,0.65356,45853.0,45836.0,0.00033]
[1641409507257,0.15179765,45843.0,45836.0,0.00033]
[1641409507454,0.15179765,45843.0,45840.0,0.00033]
[1641409507455,1.5917,45841.0,45840.0,0.00033]
[1641409507657,0.81536,45841.0,45840.0,0.00033]
[1641409507955,0.46,45840.0,45836.0,0.00033]
[1641409508155,0.00124738,45838.0,45831.0,0.10198]
[1641409508355,0.1217,45836.0,45835.0,0.00011]
[1641409508557,0.81536,45836.0,45835.0,0.00011]
[1641409509355,0.82023126,45836.0,45835.0,0.13912333]
[1641409509559,0.68870126,45836.0,45835.0,1.22032515]
[1641409509760,0.63744,45836.0,45835.0,2.24811397]
[1641409509956,0.01218586,45841.0,45836.0,0.24224]
[1641409510205,0.01218586,45841.0,45837.0,0.360436]
[1641409510401,0.01218586,45841.0,45838.0,0.17735282]
[1641409510600,0.01218586,45841.0,45840.0,0.11381641]
[1641409510800,0.6003337,45862.0,45840.0,0.64555631]
[1641409511003,1.13929007,45864.0,45840.0,0.64555631]
[1641409511004,0.42,45864.0,45861.0,0.16495201]
[1641409511202,0.42,45864.0,45848.0,0.00128332]
[1641409511203,0.65413,45863.0,45854.0,0.00125262]
[1641409511404,0.17735282,45862.0,45854.0,0.00125262]
[1641409511603,0.65413,45863.0,45854.0,0.00125262]
[1641409511802,0.65413,45863.0,45854.0,0.18577023]
[1641409512001,0.007,45862.0,45854.0,0.25251761]
[1641409512200,0.007,45862.0,45854.0,0.122531]
[1641409512603,0.007,45862.0,45854.0,0.018]
[1641409513102,0.6003337,45859.0,45854.0,0.018]
[1641409513303,0.05455,45854.0,45845.0,0.8625894]
[1641409513505,0.17735282,45858.0,45846.0,0.13127132]
[1641409513948,0.17735282,45858.0,45846.0,0.022]
[1641409513949,1.23879282,45858.0,45846.0,0.022]
[1641409514154,1.33879282,45858.0,45846.0,0.022]
[1641409514352,1.44908201,45858.0,45846.0,0.022]
[1641409514553,1.33879282,45858.0,45846.0,0.022]
[1641409514951,0.5947144,45852.0,45846.0,0.022]
[1641409515150,0.6947144,45852.0,45846.0,0.022]
[1641409515354,0.1357656,45845.0,45843.0,0.109083]
[1641409515752,0.054551,45847.0,45835.0,0.00011]
[1641409515951,0.0401,45846.0,45843.0,0.046]
[1641409516454,0.00120236,45844.0,45843.0,0.046]
[1641409516656,0.86130236,45844.0,45843.0,0.046]
[1641409516853,0.83819356,45844.0,45843.0,0.046]
[1641409517054,0.83819356,45844.0,45839.0,0.00049024]
[1641409517055,1.47,45843.0,45839.0,0.00049024]
[1641409517253,0.00128998,45840.0,45839.0,0.00049024]
[1641409517457,2.01551998,45840.0,45839.0,0.00049024]
[1641409517694,2.22335998,45840.0,45839.0,0.00049024]
[1641409517896,0.54,45839.0,45835.0,0.00011]
[1641409518094,0.00126094,45836.0,45835.0,0.00011]
[1641409518296,0.04136094,45836.0,45835.0,0.00011]
[1641409518497,0.04136094,45836.0,45827.0,0.00033]
[1641409518498,0.69549094,45836.0,45827.0,0.00033]
[1641409518696,0.00126588,45830.0,45828.0,0.00011]
[1641409518897,0.00126588,45830.0,45827.0,0.00033]
[1641409518898,2.194,45829.0,45827.0,0.00033]
[1641409519096,2.194,45829.0,45826.0,0.00044]
[1641409519097,2.654,45829.0,45826.0,0.00044]
[1641409519302,1.46,45827.0,45823.0,0.0004221]
[1641409519496,1.47,45825.0,45813.0,0.00011]
[1641409519699,0.1971856,45809.0,45808.0,0.15]
[1641409519998,0.2372856,45809.0,45808.0,0.15]
[1641409520397,0.9972856,45809.0,45800.0,0.00011]
[1641409520597,0.98012273,45808.0,45800.0,0.00011]
[1641409520799,0.29847787,45809.0,45807.0,0.0949]
[1641409521001,0.79423,45808.0,45807.0,0.0949]
[1641409521199,0.69544534,45808.0,45800.0,0.00011]
[1641409521458,0.69544534,45808.0,45798.0,0.00011]
[1641409521459,0.13624796,45806.0,45798.0,0.00011]
[1641409521657,0.13624796,45806.0,45792.0,0.00011]
[1641409521658,0.1,45803.0,45792.0,0.00011]
[1641409521858,0.12295742,45800.0,45791.0,0.100782]
[1641409522051,0.12295742,45800.0,45784.0,0.00033]
[1641409522052,0.00127982,45798.0,45786.0,0.00022]
[1641409522253,1.07345715,45797.0,45789.0,0.00011]
[1641409522450,0.01233,45795.0,45786.0,0.00022]
[1641409522653,0.01233,45795.0,45781.0,0.00422]
[1641409522654,0.1217,45791.0,45778.0,0.109585]
[1641409522849,0.00123073,45786.0,45784.0,0.0999]
[1641409523049,0.00123073,45786.0,45775.0,0.00022]
[1641409523050,0.65413,45785.0,45775.0,0.00022]
[1641409523251,0.65413,45785.0,45784.0,0.15]
[1641409523451,1.44042831,45785.0,45784.0,0.3999]
[1641409523648,1.44042831,45785.0,45777.0,0.1772578]
[1641409523649,0.2499,45784.0,45781.0,0.05463]
[1641409523858,0.091329,45783.0,45782.0,0.1770378]
[1641409524056,0.65042831,45785.0,45782.0,0.60342341]
[1641409524057,0.59542831,45785.0,45782.0,0.60342341]
[1641409524253,0.59542831,45785.0,45783.0,0.36626028]
[1641409524254,0.56862831,45785.0,45783.0,0.36626028]
[1641409524459,0.00487416,45809.0,45782.0,0.60342341]
[1641409524460,0.00487416,45809.0,45784.0,1.6556073]
[1641409524654,0.5,45808.0,45794.0,0.1]
[1641409524854,0.78971783,45808.0,45792.0,0.00128496]
[1641409525110,0.78971783,45808.0,45807.0,0.0999]
[1641409525111,0.28971783,45808.0,45807.0,0.0999]
[1641409525310,0.32641783,45808.0,45807.0,0.3498]
[1641409525508,2.53066325,45808.0,45807.0,0.3498]
[1641409525907,2.53066325,45808.0,45807.0,0.35100255]
[1641409526108,2.54266325,45808.0,45807.0,0.35100255]
[1641409526309,2.54266325,45808.0,45807.0,0.26033255]
[1641409526708,0.85,45807.0,45800.0,0.054614]
[1641409526910,0.69161,45806.0,45797.0,0.109212]
[1641409527115,0.69161,45806.0,45787.0,0.1770378]
[1641409527116,0.00120197,45799.0,45787.0,0.1770378]
[1641409527309,0.00120488,45791.0,45783.0,0.1770378]
[1641409527511,0.0367,45798.0,45789.0,0.204621]
[1641409527712,0.0367,45798.0,45789.0,0.15]
[1641409527908,0.0367,45798.0,45797.0,0.0999]
[1641409528108,0.70561,45798.0,45797.0,0.2499]
[1641409528308,1.36561,45798.0,45797.0,0.2499]
[1641409528509,0.80561,45798.0,45797.0,0.1499]
[1641409528709,0.80561,45798.0,45797.0,0.3498]
[1641409528948,0.80561,45798.0,45797.0,0.4998]
[1641409529147,0.80561,45798.0,45797.0,0.3498]
[1641409529352,0.35304184,45814.0,45797.0,0.499]
[1641409529353,0.01223588,45803.0,45797.0,0.499]
[1641409529546,0.01223588,45803.0,45797.0,0.49943434]
[1641409529754,0.88683938,45818.0,45803.0,0.42]
[1641409529952,0.5,45816.0,45804.0,0.1770378]
[1641409530148,0.5,45816.0,45809.0,0.12881654]
[1641409530349,0.0436,45819.0,45813.0,0.2499]
[1641409530549,0.65479,45818.0,45813.0,0.2999]
[1641409530751,0.218104,45818.0,45817.0,0.054592]
[1641409531147,0.01233,45827.0,45817.0,0.054592]
[1641409531447,0.65471,45826.0,45819.0,0.11336515]
[1641409531651,0.65471,45826.0,45824.0,0.05458]
[1641409531849,0.65471,45826.0,45824.0,0.109164]
[1641409532052,0.0367,45825.0,45824.0,0.159164]
[1641409532354,0.0367,45825.0,45823.0,0.00047845]
[1641409532355,1.63490513,45824.0,45823.0,0.00047845]
[1641409532593,0.85631513,45824.0,45823.0,0.00047845]
[1641409532797,0.69141,45824.0,45823.0,0.00047845]
[1641409533394,0.209217,45824.0,45823.0,1.33047845]
[1641409533701,0.004,45839.0,45835.0,0.75]
[1641409533897,0.004,45839.0,45835.0,0.37982534]
[1641409534093,0.004,45839.0,45835.0,0.47982534]
[1641409534296,0.004,45839.0,45835.0,0.60177868]
[1641409534497,0.65449,45838.0,45836.0,1.44934782]
[1641409534698,0.01133,45847.0,45836.0,1.44934782]
[1641409534699,0.01133,45858.0,45843.0,0.00120108]
[1641409534903,0.004,45859.0,45846.0,0.109084]
[1641409534904,0.65436,45848.0,45846.0,0.109084]
[1641409535299,0.65436,45848.0,45847.0,0.05]
[1641409535798,0.65436,45848.0,45846.0,0.1]
[1641409536000,1.155,45847.0,45846.0,0.05]
[1641409536200,0.08134402,45847.0,45846.0,0.05]
[1641409536449,0.08134402,45847.0,45835.0,0.42]
[1641409536450,0.08134402,45847.0,45840.0,0.05456]
[1641409536648,0.65436,45846.0,45836.0,0.00129483]
[1641409537047,0.75436,45846.0,45838.0,0.00538005]
[1641409537248,0.75436,45846.0,45844.0,0.05456]
[1641409537650,0.75436,45846.0,45841.0,0.109108]
[1641409537651,0.0367,45845.0,45841.0,0.109108]
[1641409537848,0.65436,45844.0,45832.0,0.0058495]
[1641409538047,0.0367,45843.0,45835.0,0.32]
[1641409538247,0.054574,45841.0,45835.0,0.32]
[1641409538450,0.13328541,45837.0,45835.0,0.32]
[1641409538648,0.69106,45836.0,45835.0,0.32]
[1641409538849,0.89831161,45836.0,45835.0,0.32]
[1641409539049,0.89831161,45836.0,45835.0,0.0001]
[1641409539050,0.99831161,45836.0,45835.0,0.0001]
[1641409539250,0.99831161,45836.0,45823.0,0.00047845]
[1641409539451,1.00368812,45836.0,45823.0,0.00047845]
[1641409539648,1.46134402,45824.0,45823.0,0.00047845]
[1641409539849,1.4167,45824.0,45823.0,0.00047845]
[1641409540105,1.4167,45824.0,45821.0,0.00047836]
[1641409540106,4.03100403,45824.0,45821.0,0.00047836]
[1641409540299,4.66281301,45824.0,45823.0,0.00011751]
[1641409540498,4.66281301,45824.0,45821.0,2.338e-05]
[1641409540499,4.56281301,45824.0,45821.0,2.338e-05]
[1641409540701,0.0763,45822.0,45821.0,2.338e-05]
[1641409540898,0.0763,45822.0,45800.0,0.00011]
[1641409540899,0.15144454,45807.0,45800.0,0.00011]
[1641409541195,0.92819697,45806.0,45800.0,0.00011]
[1641409541598,2.18319697,45806.0,45800.0,0.00011]
[1641409541797,2.20110297,45806.0,45800.0,0.00011]
[1641409541998,0.0367,45805.0,45800.0,0.00011]
[1641409542196,0.65436,45804.0,45800.0,0.00011]
[1641409542396,0.65436,45804.0,45800.0,0.109316]
[1641409542397,0.0367,45803.0,45800.0,0.109316]
[1641409542606,0.0367,45803.0,45801.0,0.02183944]
[1641409542797,0.0367,45803.0,45801.0,0.05460744]
[1641409542998,0.85992129,45803.0,45801.0,0.032768]
[1641409543199,0.86479611,45803.0,45801.0,0.032768]
[1641409543855,0.86479611,45803.0,45801.0,0.027768]
[1641409544051,0.86479611,45803.0,45799.0,0.00011]
[1641409544052,0.97279611,45803.0,45799.0,0.00011]
[1641409544651,0.98515611,45803.0,45799.0,0.00011]
[1641409545052,0.82322129,45800.0,45799.0,0.065646]
[1641409545257,0.95992129,45800.0,45799.0,0.065646]
[1641409545656,1.37397418,45800.0,45799.0,0.065646]
[1641409546056,1.38197418,45800.0,45799.0,0.065646]
[1641409546255,2.03700418,45800.0,45799.0,0.065646]
[1641409546454,2.03700418,45800.0,45799.0,0.115646]
[1641409547155,2.03700418,45800.0,45798.0,0.02622]
[1641409547367,1.155,45799.0,45795.0,0.10011]
[1641409547596,0.1,45796.0,45791.0,0.00411]
[1641409547799,1.84673,45795.0,45791.0,0.00411]
[1641409547996,0.0367,45794.0,45791.0,0.00411]
[1641409548197,2.585,45792.0,45791.0,0.00046316]
[1641409548395,1.85909,45792.0,45791.0,0.00046316]
[1641409548596,1.95909,45792.0,45791.0,0.00046316]
[1641409548796,1.96396596,45792.0,45791.0,0.00046316]
[1641409549198,2.88624014,45792.0,45791.0,0.00046316]
[1641409549496,1.37,45791.0,45786.0,0.02141416]
[1641409549698,0.69173,45790.0,45786.0,0.02141416]
[1641409549898,0.65503,45790.0,45786.0,0.02141416]
[1641409550096,0.65503,45790.0,45787.0,0.05462316]
[1641409550097,0.79173,45790.0,45787.0,0.05462316]
[1641409550903,0.79173,45790.0,45781.0,0.00411]
[1641409550904,0.00537107,45788.0,45781.0,0.00411]
[1641409551098,1.43120914,45789.0,45781.0,0.00411]
[1641409551099,0.00613,45787.0,45781.0,0.00411]
[1641409551549,0.06074869,45787.0,45781.0,0.00411]
[1641409552245,0.06374869,45787.0,45781.0,0.00411]
[1641409553045,0.11374869,45787.0,45781.0,0.00411]
[1641409553245,0.06374869,45787.0,45781.0,0.00411]
[1641409553546,0.11074869,45787.0,45781.0,0.00411]
[1641409553745,0.06074869,45787.0,45781.0,0.00411]
[1641409553946,0.11074869,45787.0,45781.0,0.00411]
[1641409554145,0.11574869,45787.0,45781.0,0.00411]
[1641409554548,0.06574869,45787.0,45781.0,0.00411]
[1641409554748,0.01113,45787.0,45785.0,0.1]
[1641409555203,0.82120914,45799.0,45790.0,0.0012741]
[1641409555402,0.82120914,45799.0,45796.0,0.16177444]
[1641409555598,0.82120914,45799.0,45795.0,0.14119728]
[1641409555599,0.82120914,45804.0,45795.0,0.14119728]
[1641409556203,0.82620914,45804.0,45797.0,0.10046475]
[1641409556402,0.005,45804.0,45797.0,0.10046475]
[1641409556601,0.005,45804.0,45803.0,1.524579]
[1641409556801,0.005,45804.0,45803.0,1.885657]
[1641409557000,0.94082433,45815.0,45804.0,0.49298955]
[1641409557205,0.054579,45824.0,45813.0,0.17185523]
[1641409557206,0.94082433,45824.0,45813.0,0.17185523]
[1641409557403,0.94082433,45824.0,45807.0,0.109136]
[1641409557601,0.94082433,45824.0,45807.0,0.159136]
[1641409557906,0.0545682,45825.0,45819.0,0.1]
[1641409558303,0.004,45824.0,45819.0,0.15]
[1641409558504,0.004,45824.0,45819.0,0.05]
[1641409558702,0.70765571,45822.0,45814.0,0.021826]
[1641409558951,0.20659785,45821.0,45807.0,0.014]
[1641409559348,0.0367,45820.0,45807.0,0.014]
[1641409559548,0.0367,45820.0,45798.0,0.109153]
[1641409559549,0.15890498,45813.0,45800.0,0.021835]
[1641409559749,0.2146579,45808.0,45800.0,0.1119658]
[1641409559949,0.15890498,45813.0,45798.0,0.159153]
[1641409560149,0.15890498,45813.0,45803.0,0.054583]
[1641409560350,0.10916845,45815.0,45803.0,0.054583]
[1641409560555,0.70765571,45817.0,45807.0,0.021833]
[1641409560950,0.70765571,45816.0,45808.0,0.12291698]
[1641409561150,0.70765571,45816.0,45807.0,0.021833]
[1641409561350,0.1702649,45814.0,45803.0,0.093664]
[1641409561550,0.70765571,45817.0,45803.0,0.093664]
[1641409561751,0.70765571,45817.0,45808.0,0.00010001]
[1641409561752,0.81681156,45817.0,45808.0,0.00010001]
[1641409562151,0.82281156,45817.0,45809.0,0.00010001]
[1641409562455,0.70921488,45817.0,45811.0,0.1]
[1641409562704,0.006,45817.0,45809.0,0.00010001]
[1641409563305,0.006,45817.0,45810.0,0.1]
[1641409563505,0.006,45817.0,45815.0,0.1]
[1641409563705,0.006,45817.0,45815.0,0.095]
[1641409563905,0.006,45817.0,45816.0,1.58490393]
[1641409564105,0.82751642,45820.0,45816.0,1.94598193]
[1641409564307,0.021,45817.0,45816.0,1.90495332]